fUST/lending_fUST_20250312
["ID","MTS","AMOUNT","RATE_DAILY","PERIOD"]
[355959990,1741734692345,-725.09,0.00022305,2]
[355959991,1741734692354,-853.84,0.00022305,2]
[355959992,1741734692363,-536.23,0.00022305,2]
[355959993,1741734692373,-500.0,0.00022305,2]
[355959994,1741734692382,-740.86,0.00022305,2]
[355959995,1741734692391,-500.0,0.00022305,2]
[355959996,1741734692400,-500.0,0.00022309,2]
[355959997,1741734692410,-500.0,0.00022309,2]
[355959998,1741734692419,-527.54,0.00022309,2]
[355959999,1741734692430,-500.0,0.00022309,2]
[355960000,1741734692439,-504.98,0.00022309,2]
[355960001,1741734692448,-622.0,0.00022309,2]
[355960002,1741734692457,-500.0,0.00022309,2]
[355960003,1741734692467,-554.08,0.00022309,2]
[355960004,1741734692476,-2973.52,0.00022309,2]
[355960005,1741734692485,-601.0,0.00022309,2]
[355960006,1741734692494,-500.0,0.00022309,2]
[355960007,1741734692503,-691.82,0.00022309,2]
[355960008,1741734692513,-500.0,0.00022309,2]
[355960009,1741734692523,-500.0,0.00022309,2]
[355960010,1741734692532,-500.0,0.00022309,2]
[355960011,1741734692541,-500.0,0.00022309,2]
[355960012,1741734692550,-500.0,0.00022309,2]
[355960013,1741734692559,-602.44,0.00022309,2]
[355960014,1741734692568,-500.0,0.00022309,2]
[355960015,1741734692577,-820.67,0.00022309,2]
[355960016,1741734692587,-500.0,0.00022309,2]
[355960017,1741734692596,-793.66,0.00022309,2]
[355960018,1741734692605,-590.49,0.00022309,2]
[355960019,1741734692614,-500.0,0.00022309,2]
[355960020,1741734692623,-500.0,0.00022309,2]
[355960021,1741734692632,-500.0,0.00022309,2]
[355960022,1741734692642,-535.91,0.00022309,2]
[355960023,1741734692651,-500.0,0.00022309,2]
[355960024,1741734692660,-500.0,0.00022309,2]
[355960025,1741734692670,-654.51,0.00022309,2]
[355960026,1741734692679,-864.43,0.00022309,2]
[355960027,1741734692688,-1196.8,0.00022309,2]
[355960028,1741734692697,-920.25,0.00022309,2]
[355960029,1741734692706,-1396.49,0.00022309,2]
[355960030,1741734692715,-548.11,0.00022309,2]
[355960031,1741734692725,-647.17,0.00022309,5]
[355960032,1741734692734,-500.0,0.00022309,2]
[355960033,1741734692744,-500.0,0.00022309,2]
[355960034,1741734692758,-500.0,0.00022309,2]
[355960035,1741734692767,-500.0,0.00022309,2]
[355960036,1741734692777,-627.98,0.00022309,2]
[355960037,1741734692787,-500.0,0.00022312,2]
[355960038,1741734692797,-500.0,0.00022312,2]
[355960039,1741734692807,-500.0,0.00022312,2]
[355960040,1741734692816,-728.06,0.00022312,2]
[355960041,1741734692826,-958.86,0.00022312,2]
[355960042,1741734692836,-1101.24,0.00022312,2]
[355960043,1741734692846,-987.72,0.00022312,2]
[355960044,1741734692855,-500.0,0.00022313,2]
[355960045,1741734692864,-500.0,0.00022313,2]
[355960046,1741734692874,-1782.88,0.00022313,2]
[355960047,1741734692883,-559.98,0.00022313,2]
[355960048,1741734692892,-640.92,0.00022313,2]
[355960049,1741734692901,-242.05924484,0.00022313,2]
[355960050,1741734692911,-578.46,0.00022313,2]
[355960051,1741734692920,-1913.04,0.00022313,2]
[355960052,1741734692930,-500.0,0.00022313,2]
[355960053,1741734692940,-888.29,0.00022313,2]
[355960054,1741734692949,-748.42,0.00022313,2]
[355960055,1741734692959,-500.0,0.00022401,2]
[355960056,1741734692968,-23179.53,0.00022465,2]
[355960057,1741734692978,-542.81,0.00022465,2]
[355960058,1741734692987,-500.0,0.00022465,2]
[355960059,1741734692996,-2091.01,0.00022465,2]
[355960060,1741734693007,-13103.95,0.00022465,2]
[355960061,1741734693016,-9736.43,0.00022465,2]
[355960062,1741734693026,-794.64,0.00022465,2]
[355960063,1741734693036,-705.67,0.00022465,2]
[355960064,1741734693045,-536.16,0.00022465,2]
[355960065,1741734693055,-500.0,0.00022465,2]
[355960066,1741734693065,-500.0,0.00022465,2]
[355960067,1741734693075,-500.0,0.00022465,2]
[355960068,1741734693084,-576.66,0.00022465,2]
[355960069,1741734693094,-500.0,0.00022465,2]
[355960070,1741734693104,-1473.83,0.00022465,2]
[355960071,1741734693114,-570.33,0.00022465,2]
[355960072,1741734693124,-500.0,0.00022465,2]
[355960073,1741734693134,-500.0,0.00022465,2]
[355960074,1741734693143,-500.0,0.00022465,2]
[355960075,1741734693153,-505.73,0.00022465,2]
[355960076,1741734693165,-5474.57,0.00022465,2]
[355960077,1741734693175,-3769.43,0.00022465,2]
[355960078,1741734693184,-1250.48,0.00022465,2]
[355960079,1741734693194,-2486.99,0.00022465,2]
[355960080,1741734693203,-525.77,0.00022465,2]
[355960081,1741734693212,-500.0,0.00022465,2]
[355960082,1741734693222,-601.79,0.00022465,2]
[355960083,1741734693231,-723.39,0.00022465,2]
[355960084,1741734693241,-411.6122497,0.00022465,2]
[355960085,1741734693250,-500.0,0.00022465,2]
[355960086,1741734693259,-500.0,0.00022465,2]
[355960087,1741734693269,-500.0,0.00022465,2]
[355960088,1741734693278,-479.00134383,0.00022465,2]
[355960089,1741734693287,-659.44,0.00022465,2]
[355960090,1741734693296,-500.0,0.00022465,2]
[355960091,1741734693306,-500.0,0.00022465,2]
[355960092,1741734693315,-500.0,0.00022465,2]
[355960093,1741734693325,-500.0,0.00022465,2]
[355960094,1741734693335,-1136.06,0.00022465,2]
[355960095,1741734693344,-500.0,0.00022465,2]
[355960096,1741734693354,-711.23,0.00022465,2]
[355960097,1741734693364,-500.0,0.00022465,2]
[355960098,1741734693374,-710.79,0.00022465,2]
[355960099,1741734693384,-500.0,0.00022465,2]
[355960100,1741734693394,-500.0,0.00022465,2]
[355960101,1741734693404,-500.0,0.00022465,2]
[355960102,1741734693413,-1151.95,0.00022465,2]
[355960103,1741734693423,-513.3,0.00022465,2]
[355960104,1741734693432,-714.14,0.00022465,2]
[355960105,1741734693441,-500.0,0.00022465,2]
[355960106,1741734693451,-1290.07,0.00022465,2]
[355960107,1741734693460,-500.0,0.00022465,2]
[355960108,1741734693470,-4997.1,0.00022465,2]
[355960109,1741734693479,-500.0,0.00022465,2]
[355960110,1741734693489,-500.0,0.00022465,2]
[355960111,1741734693498,-1292.35,0.00022465,2]
[355960112,1741734693508,-605.24,0.00022465,2]
[355960113,1741734693517,-1188.37,0.00022465,2]
[355960114,1741734693527,-604.97,0.00022465,2]
[355960115,1741734693536,-630.73,0.00022465,2]
[355960116,1741734693546,-1994.33,0.00022465,2]
[355960117,1741734693555,-892.18,0.00022465,2]
[355960118,1741734693565,-755.13,0.00022465,2]
[355960119,1741734693575,-545.99,0.00022465,2]
[355960120,1741734693584,-1156.57,0.00022465,2]
[355960121,1741734693594,-520.62,0.00022465,2]
[355960122,1741734693604,-1451.2,0.00022465,2]
[355960123,1741734693613,-500.0,0.00022465,2]
[355960124,1741734693623,-621.0,0.00022465,2]
[355960125,1741734693633,-1784.22,0.00022465,2]
[355960126,1741734693642,-500.0,0.00022465,2]
[355960127,1741734693652,-500.0,0.00022465,2]
[355960128,1741734693662,-1214.06,0.00022465,2]
[355960129,1741734693671,-868.24,0.00022465,2]
[355960130,1741734693680,-500.0,0.00022465,2]
[355960131,1741734693690,-1227.37,0.00022465,2]
[355960132,1741734693699,-728.17,0.00022465,2]
[355960133,1741734693709,-1170.42,0.00022465,2]
[355960134,1741734693718,-5008.44,0.00022465,2]
[355960135,1741734693728,-500.0,0.00022465,2]
[355960136,1741734693737,-1568.17,0.00022465,2]
[355960137,1741734693748,-751.65,0.00022465,2]
[355960138,1741734693761,-500.0,0.00022465,2]
[355960139,1741734693771,-595.41,0.00022465,2]
[355960140,1741734693781,-1467.72,0.00022465,2]
[355960141,1741734693794,-653.8,0.00022465,2]
[355960142,1741734693805,-4529.09,0.00022465,2]
[355960143,1741734693815,-500.0,0.00022465,2]
[355960144,1741734693825,-500.0,0.00022465,2]
[355960145,1741734693837,-1488.91,0.00022465,2]
[355960146,1741734693847,-621.67,0.00022465,2]
[355960147,1741734693858,-2429.43,0.00022465,2]
[355960148,1741734693869,-920.31,0.00022465,2]
[355960149,1741734693879,-957.86,0.00022465,2]
[355960150,1741734693890,-1110.2,0.00022465,2]
[355960151,1741734693900,-544.11,0.00022465,2]
[355960152,1741734693911,-500.0,0.00022465,2]
[355960153,1741734693921,-952.07,0.00022465,2]
[355960154,1741734693932,-576.21,0.00022465,2]
[355960155,1741734693943,-738.24,0.00022465,2]
[355960156,1741734693953,-9999.0,0.00022465,2]
[355960157,1741734693962,-853.84,0.00022465,2]
[355960158,1741734693973,-175.44240367,0.00022465,2]
[355960159,1741734693983,-544.34,0.00022465,2]
[355960160,1741734693994,-500.0,0.00022465,2]
[355960161,1741734694005,-199.52564772,0.00022465,2]
[355960162,1741734694016,-677.1,0.00022465,2]
[355960163,1741734694026,-4842.64,0.00022465,2]
[355960164,1741734694037,-500.0,0.00022465,2]
[355960165,1741734694047,-500.0,0.00022465,2]
[355960166,1741734694058,-518.91,0.00022465,2]
[355960167,1741734694069,-4054.19,0.00022465,2]
[355960168,1741734694079,-866.55,0.00022465,2]
[355960169,1741734694090,-3046.16,0.00022465,2]
[355960170,1741734694100,-500.0,0.00022465,2]
[355960171,1741734694110,-158.770233,0.00022572,2]
[355960172,1741734694121,-1142.28,0.00022576,2]
[355960173,1741734694131,-3772.17,0.00022576,2]
[355960174,1741734694141,-163381.79,0.00022576,2]
[355960175,1741734694151,-2671.58,0.00022576,2]
[355960176,1741734694161,-863.38,0.00022576,2]
[355960177,1741734694171,-5706.05,0.00022576,2]
[355960178,1741734694182,-664.48,0.00022576,2]
[355960179,1741734694192,-500.0,0.00022576,2]
[355960180,1741734694202,-3577.81,0.00022576,2]
[355960181,1741734694212,-909.63,0.00022579,2]
[355960182,1741734694222,-500.0,0.00022579,2]
[355960183,1741734694232,-1219.12,0.00022579,2]
[355960184,1741734694242,-500.0,0.00022579,2]
[355960185,1741734694251,-735.93,0.00022579,2]
[355960186,1741734694262,-613.95,0.00022579,2]
[355960187,1741734694272,-500.0,0.00022579,2]
[355960188,1741734694282,-500.0,0.00022579,2]
[355960189,1741734694292,-617.74,0.00022579,2]
[355960190,1741734694301,-500.0,0.00022579,2]
[355960191,1741734694312,-1157.79,0.00022579,2]
[355960192,1741734694322,-610.48,0.00022579,2]
[355960193,1741734694333,-547.18,0.00022579,2]
[355960194,1741734694343,-500.0,0.00022579,2]
[355960195,1741734694353,-1437.26,0.00022579,2]
[355960196,1741734694363,-500.0,0.00022579,2]
[355960197,1741734694374,-559.53,0.00022579,2]
[355960198,1741734694384,-1184.99,0.00022579,2]
[355960199,1741734694394,-541.3,0.00022579,2]
[355960200,1741734694405,-500.0,0.00022579,2]
[355960201,1741734694415,-500.0,0.00022579,2]
[355960202,1741734694426,-275.93730207,0.00022579,2]
[355960203,1741734694436,-500.0,0.00022579,2]
[355960204,1741734694447,-500.0,0.00022579,2]
[355960205,1741734694458,-403.22342482,0.00022579,2]
[355960206,1741734694468,-1059.92,0.00022579,2]
[355960207,1741734694478,-677.01,0.00022579,2]
[355960208,1741734694489,-1053.17,0.00022579,2]
[355960209,1741734694499,-1149.09,0.00022579,2]
[355960210,1741734694512,-2390.45,0.00022579,2]
[355960211,1741734694522,-673.04,0.00022579,2]
[355960212,1741734694533,-500.0,0.00022579,2]
[355960213,1741734694543,-500.0,0.00022579,2]
[355960214,1741734694553,-1109.37,0.00022579,2]
[355960215,1741734694563,-1057.29,0.00022579,2]
[355960216,1741734694573,-725.09,0.00022579,2]
[355960217,1741734694583,-853.84,0.00022579,2]
[355960218,1741734694594,-536.23,0.00022579,2]
[355960219,1741734694604,-500.0,0.00022579,2]
[355960220,1741734694616,-740.86,0.00022579,2]
[355960221,1741734694626,-500.0,0.00022579,2]
[355960222,1741734694635,-500.0,0.00022583,2]
[355960223,1741734694645,-500.0,0.00022583,2]
[355960224,1741734694655,-527.54,0.00022583,2]
[355960225,1741734694664,-500.0,0.00022583,2]
[355960226,1741734694674,-504.98,0.00022583,2]
[355960227,1741734694684,-622.0,0.00022583,2]
[355960228,1741734694694,-500.0,0.00022583,2]
[355960229,1741734694704,-554.08,0.00022583,2]
[355960230,1741734694714,-2973.52,0.00022583,2]
[355960231,1741734694724,-601.0,0.00022583,2]
[355960232,1741734694734,-500.0,0.00022583,2]
[355960233,1741734694744,-691.82,0.00022583,2]
[355960234,1741734694759,-500.0,0.00022583,2]
[355960235,1741734694769,-500.0,0.00022583,2]
[355960236,1741734694779,-500.0,0.00022583,2]
[355960237,1741734694791,-500.0,0.00022583,2]
[355960238,1741734694800,-500.0,0.00022583,2]
[355960239,1741734694810,-602.44,0.00022583,2]
[355960240,1741734694821,-500.0,0.00022583,2]
[355960241,1741734694831,-820.67,0.00022583,2]
[355960242,1741734694842,-251.20883787,0.00022583,2]
[355960243,1741734694852,-793.66,0.00022583,2]
[355960244,1741734694862,-590.49,0.00022583,2]
[355960245,1741734694872,-500.0,0.00022583,2]
[355960246,1741734694882,-500.0,0.00022583,2]
[355960247,1741734694891,-500.0,0.00022583,2]
[355960248,1741734694901,-535.91,0.00022583,2]
[355960249,1741734694911,-500.0,0.00022583,2]
[355960250,1741734694921,-500.0,0.00022583,2]
[355960251,1741734694931,-654.51,0.00022583,2]
[355960252,1741734694941,-864.43,0.00022583,2]
[355960253,1741734694951,-1196.8,0.00022583,2]
[355960254,1741734694961,-920.25,0.00022583,2]
[355960255,1741734694971,-1396.49,0.00022583,2]
[355960256,1741734694981,-548.11,0.00022583,2]
[355960257,1741734694991,-647.17,0.00022583,5]
[355960258,1741734695001,-500.0,0.00022583,2]
[355960259,1741734695012,-500.0,0.00022583,2]
[355960260,1741734695022,-500.0,0.00022583,2]
[355960261,1741734695032,-500.0,0.00022583,2]
[355960262,1741734695042,-627.98,0.00022583,2]
[355960263,1741734695053,-500.0,0.00022586,2]
[355960264,1741734695062,-500.0,0.00022586,2]
[355960265,1741734695072,-500.0,0.00022586,2]
[355960266,1741734695082,-728.06,0.00022586,2]
[355960267,1741734695092,-958.86,0.00022586,2]
[355960268,1741734695102,-1101.24,0.00022586,2]
[355960269,1741734695111,-987.72,0.00022586,2]
[355960270,1741734695121,-500.0,0.00022587,2]
[355960271,1741734695132,-500.0,0.00022587,2]
[355960272,1741734695142,-1782.88,0.00022587,2]
[355960273,1741734695152,-559.98,0.00022587,2]
[355960274,1741734695162,-640.92,0.00022587,2]
[355960275,1741734695172,-578.46,0.00022587,2]
[355960276,1741734695183,-1913.04,0.00022587,2]
[355960277,1741734695193,-500.0,0.00022587,2]
[355960278,1741734695203,-888.29,0.00022587,2]
[355960279,1741734695213,-748.42,0.00022587,2]
[355960280,1741734695223,-500.0,0.00022675,2]
[355960281,1741734695233,-587.0,0.00022683,2]
[355960282,1741734695243,-1707.356673,0.000227,5]
[355960283,1741734695253,-1000.0,0.0002272,5]
[355960284,1741734695263,-23179.53,0.00022739,2]
[355960285,1741734695273,-542.81,0.00022739,2]
[355960286,1741734695283,-500.0,0.00022739,2]
[355960287,1741734695293,-2091.01,0.00022739,2]
[355960288,1741734695303,-13103.95,0.00022739,2]
[355960289,1741734695313,-9736.43,0.00022739,2]
[355960290,1741734695323,-794.64,0.00022739,2]
[355960291,1741734695332,-705.67,0.00022739,2]
[355960292,1741734695342,-536.16,0.00022739,2]
[355960293,1741734695352,-500.0,0.00022739,2]
[355960294,1741734695362,-500.0,0.00022739,2]
[355960295,1741734695371,-500.0,0.00022739,2]
[355960296,1741734695381,-576.66,0.00022739,2]
[355960297,1741734695391,-500.0,0.00022739,2]
[355960298,1741734695401,-1473.83,0.00022739,2]
[355960299,1741734695411,-570.33,0.00022739,2]
[355960300,1741734695421,-500.0,0.00022739,2]
[355960301,1741734695431,-500.0,0.00022739,2]
[355960302,1741734695441,-500.0,0.00022739,2]
[355960303,1741734695451,-505.73,0.00022739,2]
[355960304,1741734695460,-5474.57,0.00022739,2]
[355960305,1741734695470,-3769.43,0.00022739,2]
[355960306,1741734695480,-1250.48,0.00022739,2]
[355960307,1741734695490,-2486.99,0.00022739,2]
[355960308,1741734695500,-525.77,0.00022739,2]
[355960309,1741734695512,-500.0,0.00022739,2]
[355960310,1741734695522,-601.79,0.00022739,2]
[355960311,1741734695532,-723.39,0.00022739,2]
[355960312,1741734695543,-500.0,0.00022739,2]
[355960313,1741734695553,-500.0,0.00022739,2]
[355960314,1741734695565,-500.0,0.00022739,2]
[355960315,1741734695576,-659.44,0.00022739,2]
[355960316,1741734695587,-500.0,0.00022739,2]
[355960317,1741734695597,-212.74928682,0.00022739,2]
[355960318,1741734695608,-500.0,0.00022739,2]
[355960319,1741734695619,-500.0,0.00022739,2]
[355960320,1741734695629,-1136.06,0.00022739,2]
[355960321,1741734695639,-411.81552655,0.00022739,2]
[355960322,1741734695649,-711.23,0.00022739,2]
[355960323,1741734695661,-303.61893436,0.00022739,2]
[355960324,1741734695671,-710.79,0.00022739,2]
[355960325,1741734695681,-500.0,0.00022739,2]
[355960326,1741734695692,-503.71848397,0.00022739,2]
[355960327,1741734695702,-500.0,0.00022739,2]
[355960328,1741734695712,-1151.95,0.00022739,2]
[355960329,1741734695722,-513.3,0.00022739,2]
[355960330,1741734695733,-714.14,0.00022739,2]
[355960331,1741734695743,-500.0,0.00022739,2]
[355960332,1741734695758,-1290.07,0.00022739,2]
[355960333,1741734695769,-500.0,0.00022739,2]
[355960334,1741734695780,-4997.1,0.00022739,2]
[355960335,1741734695792,-500.0,0.00022739,2]
[355960336,1741734695802,-544.45348982,0.00022739,2]
[355960337,1741734695813,-1292.35,0.00022739,2]
[355960338,1741734695823,-605.24,0.00022739,2]
[355960339,1741734695834,-1188.37,0.00022739,2]
[355960340,1741734695845,-604.97,0.00022739,2]
[355960341,1741734695855,-630.73,0.00022739,2]
[355960342,1741734695866,-1994.33,0.00022739,2]
[355960343,1741734695876,-892.18,0.00022739,2]
[355960344,1741734695887,-755.13,0.00022739,2]
[355960345,1741734695897,-545.99,0.00022739,2]
[355960346,1741734695907,-1156.57,0.00022739,2]
[355960347,1741734695918,-520.62,0.00022739,2]
[355960348,1741734695929,-1451.2,0.00022739,2]
[355960349,1741734695939,-500.0,0.00022739,2]
[355960350,1741734695950,-621.0,0.00022739,2]
[355960351,1741734695961,-1784.22,0.00022739,2]
[355960352,1741734695972,-500.0,0.00022739,2]
[355960353,1741734695982,-500.0,0.00022739,2]
[355960354,1741734695992,-1214.06,0.00022739,2]
[355960355,1741734696003,-868.24,0.00022739,2]
[355960356,1741734696015,-500.0,0.00022739,2]
[355960357,1741734696025,-1227.37,0.00022739,2]
[355960358,1741734696036,-728.17,0.00022739,2]
[355960359,1741734696047,-1170.42,0.00022739,2]
[355960360,1741734696057,-5008.44,0.00022739,2]
[355960361,1741734696068,-500.0,0.00022739,2]
[355960362,1741734696079,-1568.17,0.00022739,2]
[355960363,1741734696089,-607.6154167,0.00022739,2]
[355960364,1741734696101,-751.65,0.00022739,2]
[355960365,1741734696111,-595.41,0.00022739,2]
[355960366,1741734696122,-1467.72,0.00022739,2]
[355960367,1741734696433,-653.8,0.00022739,2]
[355960368,1741734696445,-4529.09,0.00022739,2]
[355960369,1741734696454,-500.0,0.00022739,2]
[355960370,1741734696464,-500.0,0.00022739,2]
[355960371,1741734696474,-1488.91,0.00022739,2]
[355960372,1741734696484,-621.67,0.00022739,2]
[355960373,1741734696494,-2429.43,0.00022739,2]
[355960374,1741734696506,-920.31,0.00022739,2]
[355960375,1741734696515,-957.86,0.00022739,2]
[355960376,1741734696525,-1110.2,0.00022739,2]
[355960377,1741734696535,-544.11,0.00022739,2]
[355960378,1741734696544,-330.45191536,0.00022739,2]
[355960379,1741734696555,-952.07,0.00022739,2]
[355960380,1741734696564,-576.21,0.00022739,2]
[355960381,1741734696575,-738.24,0.00022739,2]
[355960382,1741734696585,-9999.0,0.00022739,2]
[355960383,1741734696595,-853.84,0.00022739,2]
[355960384,1741734696605,-544.34,0.00022739,2]
[355960385,1741734696615,-500.0,0.00022739,2]
[355960386,1741734696625,-677.1,0.00022739,2]
[355960387,1741734696635,-4842.64,0.00022739,2]
[355960388,1741734696645,-500.0,0.00022739,2]
[355960389,1741734696655,-500.0,0.00022739,2]
[355960390,1741734696666,-518.91,0.00022739,2]
[355960391,1741734696676,-4054.19,0.00022739,2]
[355960392,1741734696687,-866.55,0.00022739,2]
[355960393,1741734696697,-3046.16,0.00022739,2]
[355960394,1741734696708,-572.5770112,0.00022739,2]
[355960395,1741734696718,-308.5906258,0.0002274,2]
[355960396,1741734696728,-1000.0,0.0002274,5]
[355960397,1741734696738,-170.682837,0.00022748,2]
[355960398,1741734696748,-1000.0,0.0002276,5]
[355960399,1741734696763,-1000.0,0.0002278,5]
[355960400,1741734696774,-1000.0,0.000228,5]
[355960401,1741734696785,-500.0,0.00022818,2]
[355960402,1741734696798,-1000.0,0.0002282,5]
[355960403,1741734696808,-1000.0,0.0002284,5]
[355960404,1741734696819,-1142.28,0.0002285,2]
[355960405,1741734696832,-3772.17,0.0002285,2]
[355960406,1741734696843,-163381.79,0.0002285,2]
[355960407,1741734696853,-2671.58,0.0002285,2]
[355960408,1741734696863,-863.38,0.0002285,2]
[355960409,1741734696874,-5706.05,0.0002285,2]
[355960410,1741734696884,-664.48,0.0002285,2]
[355960411,1741734696895,-500.0,0.0002285,2]
[355960412,1741734696905,-3577.81,0.0002285,2]
[355960413,1741734696917,-909.63,0.00022853,2]
[355960414,1741734696928,-500.0,0.00022853,2]
[355960415,1741734696938,-1219.12,0.00022853,2]
[355960416,1741734696948,-500.0,0.00022853,2]
[355960417,1741734696959,-735.93,0.00022853,2]
[355960418,1741734696969,-613.95,0.00022853,2]
[355960419,1741734696980,-500.0,0.00022853,2]
[355960420,1741734696990,-500.0,0.00022853,2]
[355960421,1741734697001,-617.74,0.00022853,2]
[355960422,1741734697013,-500.0,0.00022853,2]
[355960423,1741734697023,-1157.79,0.00022853,2]
[355960424,1741734697034,-610.48,0.00022853,2]
[355960425,1741734697044,-547.18,0.00022853,2]
[355960426,1741734697055,-500.0,0.00022853,2]
[355960427,1741734697065,-1437.26,0.00022853,2]
[355960428,1741734697075,-500.0,0.00022853,2]
[355960429,1741734697085,-559.53,0.00022853,2]
[355960430,1741734697095,-1184.99,0.00022853,2]
[355960431,1741734697105,-541.3,0.00022853,2]
[355960432,1741734697115,-500.0,0.00022853,2]
[355960433,1741734697125,-500.0,0.00022853,2]
[355960434,1741734697136,-500.0,0.00022853,2]
[355960435,1741734697146,-500.0,0.00022853,2]
[355960436,1741734697156,-1059.92,0.00022853,2]
[355960437,1741734697166,-677.01,0.00022853,2]
[355960438,1741734697177,-1053.17,0.00022853,2]
[355960439,1741734697187,-1149.09,0.00022853,2]
[355960440,1741734697197,-2390.45,0.00022853,2]
[355960441,1741734697207,-673.04,0.00022853,2]
[355960442,1741734697217,-500.0,0.00022853,2]
[355960443,1741734697228,-500.0,0.00022853,2]
[355960444,1741734697237,-1109.37,0.00022853,2]
[355960445,1741734697247,-1057.29,0.00022853,2]
[355960446,1741734697257,-725.09,0.00022853,2]
[355960447,1741734697267,-853.84,0.00022853,2]
[355960448,1741734697277,-536.23,0.00022853,2]
[355960449,1741734697287,-500.0,0.00022853,2]
[355960450,1741734697298,-740.86,0.00022853,2]
[355960451,1741734697307,-500.0,0.00022853,2]
[355960452,1741734697317,-500.0,0.00022856,2]
[355960453,1741734697326,-527.54,0.00022856,2]
[355960454,1741734697336,-604.62122039,0.00022856,2]
[355960455,1741734697345,-500.0,0.00022856,2]
[355960456,1741734697355,-504.98,0.00022856,2]
[355960457,1741734697364,-622.0,0.00022856,2]
[355960458,1741734697374,-500.0,0.00022856,2]
[355960459,1741734697384,-554.08,0.00022856,2]
[355960460,1741734697393,-2973.52,0.00022856,2]
[355960461,1741734697403,-601.0,0.00022856,2]
[355960462,1741734697413,-500.0,0.00022856,2]
[355960463,1741734697423,-691.82,0.00022856,2]
[355960464,1741734697433,-500.0,0.00022856,2]
[355960465,1741734697442,-500.0,0.00022856,2]
[355960466,1741734697452,-500.0,0.00022856,2]
[355960467,1741734697462,-613.23995308,0.00022856,2]
[355960468,1741734697472,-265.45454874,0.00022856,2]
[355960469,1741734697482,-602.44,0.00022856,2]
[355960470,1741734697495,-500.0,0.00022856,2]
[355960471,1741734697510,-820.67,0.00022856,2]
[355960472,1741734697525,-793.66,0.00022856,2]
[355960473,1741734697534,-590.49,0.00022856,2]
[355960474,1741734697544,-500.0,0.00022856,2]
[355960475,1741734697554,-345.44595361,0.00022856,2]
[355960476,1741734697563,-500.0,0.00022856,2]
[355960477,1741734697573,-535.91,0.00022856,2]
[355960478,1741734697584,-575.40792919,0.00022856,2]
[355960479,1741734697594,-521.18625601,0.00022856,2]
[355960480,1741734697604,-654.51,0.00022856,2]
[355960481,1741734697614,-864.43,0.00022856,2]
[355960482,1741734697624,-1196.8,0.00022856,2]
[355960483,1741734697633,-920.25,0.00022856,2]
[355960484,1741734697643,-1396.49,0.00022856,2]
[355960485,1741734697652,-548.11,0.00022856,2]
[355960486,1741734697663,-647.17,0.00022856,5]
[355960487,1741734697672,-500.0,0.00022856,2]
[355960488,1741734697682,-500.0,0.00022856,2]
[355960489,1741734697692,-500.0,0.00022856,2]